Workbook

Sheet Summary
A3: Paragon Mortgages (No.19) PLC
A5: Information as at the Principal Determination Date | B5: 2014-07-31 | C5: 2014-10-31 | D5: 2015-01-30 | E5: 2015-04-30 | F5: 2015-07-31 | G5: 2015-10-30 | H5: 2016-01-29 | I5: 2016-04-29 | J5: 2016-07-29 | K5: 2016-10-31 | L5: 2017-01-31 | M5: 2017-04-28
A6: Mortgage Asset Balance | B6: 341836 | C6: 337311.6589 | D6: 333007.564 | E6: 329869.7599 | F6: 325743 | G6: 312291.0421 | H6: 264034.9841 | I6: 198185.2017 | J6: 161224.3059 | K6: 142460.1108 | L6: 130396.7361 | M6: 0
A7: Total Notes | B7: =SUM(B8:B11) -> 341836 | C7: 337312 | D7: 333008 | E7: 329870 | F7: 325743 | G7: 312291 | H7: =SUM(H8:H11) -> 264035 | I7: 198185 | J7: =SUM(J8:J11) -> 161224 | K7: 142460 | L7: =SUM(L8:L11) -> 130397 | M7: 0
A8: Class A Notes | B8: 305036 | C8: 300512 | D8: 296208 | E8: 293070 | F8: 288943 | G8: 275491 | H8: 227235 | I8: 161385 | J8: 124424 | K8: 105660 | L8: 93597 | M8: 0
A9: Class B Notes | B9: 15800 | C9: 15800 | D9: 15800 | E9: 15800 | F9: 15800 | G9: 15800 | H9: 15800 | I9: 15800 | J9: 15800 | K9: 15800 | L9: 15800 | M9: 0
A10: Class C Notes | B10: 14000 | C10: 14000 | D10: 14000 | E10: 14000 | F10: 14000 | G10: 14000 | H10: 14000 | I10: 14000 | J10: 14000 | K10: 14000 | L10: 14000 | M10: 0
A11: Class D Notes | B11: 7000 | C11: 7000 | D11: 7000 | E11: 7000 | F11: 7000 | G11: 7000 | H11: 7000 | I11: 7000 | J11: 7000 | K11: 7000 | L11: 7000 | M11: 0
A12: Class B, C and D Notes as a % of the Total Notes | B12: =SUM(B9:B11)/B7 -> 0.1076539627 | C12: 0.1090978086 | D12: 0.1105078557 | E12: 0.111559099 | F12: 0.1129724967 | G12: 0.1178388106 | H12: =SUM(H9:H11)/H7 -> 0.1393754616 | I12: 0.1856850922 | J12: =SUM(J9:J11)/J7 -> 0.228253858 | K12: 0.2583181244 | L12: =SUM(L9:L11)/L7 -> 0.2822150816 | M12: 0
A13: Lifetime Redemption Rate | B13: 0.0567 | C13: 0.0576 | D13: 0.0549 | E13: 0.0513 | F13: 0.0524 | G13: 0.0698 | H13: 0.1416 | I13: 0.237 | J13: 0.2804 | K13: 0.2917 | L13: 0.2923 | M13: 1
A14: Quarterly Redemption Rate | B14: 0.0294 | C14: 0.0138 | D14: 0.0135 | E14: 0.0098 | F14: 0.0147 | G14: 0.0426 | H14: 0.155 | I14: 0.2504 | J14: 0.1868 | K14: 0.1164 | L14: 0.0847 | M14: 1
A15: Further Advances released in the quarter | B15: 0 | C15: 105 | D15: 257 | E15: 139 | F15: 696 | G15: 420 | H15: 152 | I15: 262 | J15: 62 | K15: 0 | L15: 0 | M15: 0
A16: First Loss Fund Balance | B16: 10500 | C16: 10500 | D16: 10500 | E16: 10500 | F16: 10500 | G16: 10500 | H16: 10500 | I16: 10500 | J16: 10500 | K16: 10500 | L16: 10500 | M16: 0
A17: Liquidity Amount of the First Loss Fund (3% of the Class A, B and C Notes) | B17: =SUM(B8:B10)*3% -> 10045.08 | C17: 9909.36 | D17: 9780.24 | E17: 9686.1 | F17: 9562.29 | G17: 9158.73 | H17: =SUM(H8:H10)*3% -> 7711.05 | I17: 5735.55 | J17: =SUM(J8:J10)*3% -> 4626.72 | K17: 4063.8 | L17: =SUM(L8:L10)*3% -> 3701.91 | M17: 0
A18: Liquidity Excess Amount (First Loss Fund - Liquidity Amount) | B18: =B16-B17 -> 454.92 | C18: 590.64 | D18: 719.76 | E18: 813.9 | F18: 937.71 | G18: 1341.27 | H18: =H16-H17 -> 2788.95 | I18: 4764.45 | J18: =J16-J17 -> 5873.28 | K18: 6436.2 | L18: =L16-L17 -> 6798.09 | M18: 0
A19: First Loss Fund as a % of the Assets | B19: =+B16/B6 -> 0.03071648393 | C19: 0.03112848229 | D19: 0.03153081532 | E19: 0.03183074436 | F19: 0.03223400042 | G19: 0.03362248219 | H19: =+H16/H6 -> 0.03976745746 | I19: 0.05298074686 | J19: =+J16/J6 -> 0.06512665658 | K19: 0.07370484231 | L19: =+L16/L6 -> 0.08052348789 | M19: 0
A20: Opening PDL Balance | B20: 0 | C20: 0 | D20: 0 | E20: 0 | F20: 0 | G20: 0 | H20: 0 | I20: 0 | J20: 0 | K20: 0 | L20: 0 | M20: 0
A21: Quarterly Losses | B21: 0 | C21: 0 | D21: 0 | E21: 0 | F21: 0 | G21: 0 | H21: 0 | I21: =+I103+I140+I169 -> 2 | J21: =+J103+J140+J169 -> -2 | K21: =+K103+K140+K169 -> 0 | L21: =+L103+L140+L169 -> 0 | M21: =+M103+M140+M169 -> 5
A22: Quarterly Loss Rate (annualised) | B22: =1-(1-B21/B6)^4 -> 0 | C22: 0 | D22: 0 | E22: 0 | F22: 0 | G22: 0 | H22: =1-(1-H21/H6)^4 -> 0 | I22: 4.036567229e-05 | J22: =1-(1-J21/J6)^4 -> -4.96212331e-05 | K22: 0 | L22: =1-(1-L21/L6)^4 -> 0 | M22: 0
A23: PDL Replenishment made during the quarter (-ve = recoveries) | B23: 0 | C23: 0 | D23: 0 | E23: 0 | F23: 0 | G23: 0 | H23: 0 | I23: 2 | J23: -2 | K23: 0 | L23: 0 | M23: 5
A24: Outstanding PDL at end of the quarter | B24: =B20+B21-B23 -> 0 | C24: 0 | D24: 0 | E24: 0 | F24: 0 | G24: 0 | H24: =H20+H21-H23 -> 0 | I24: 0 | J24: 0 | K24: 0 | L24: 0 | M24: 0
A25: Spread Trap repayment in the quarter | B25: N/A | C25: N/A | D25: N/A | E25: N/A | F25: N/A | G25: N/A | H25: N/A | I25: N/A | J25: N/A | K25: N/A | L25: N/A | M25: N/A
A26: Spread % (WA Funding Rate less WA Interest Rate) | B26: 0.0226 | C26: 0.0229 | D26: 0.023 | E26: 0.0229 | F26: 0.023 | G26: 0.0236 | H26: 0.0262 | I26: 0.0284 | J26: 0.0269 | K26: 0.0257 | L26: 0.0247 | M26: 0
A27: Total Income as a % of the Assets | B27: 0.0167 | C27: 0.0116 | D27: 0.0116 | E27: 0.0115 | F27: 0.0116 | G27: 0.0114 | H27: 0.0102 | I27: 0.0102 | J27: 0.0104 | K27: 0.0097 | L27: 0.0102 | M27: 0
A28: Quarterly surplus income to the Issuer (inc Issuer Services Provider Fee) | B28: 3151 | C28: 2284 | D28: 2301 | E28: 2298 | F28: 2210 | G28: 2156 | H28: 1692 | I28: 1406 | J28: 1086 | K28: 823 | L28: 793 | M28: 11313
A29: Surplus Income as a % of the Assets | B29: =+B28/350000 -> 0.009002857143 | C29: =+C28/B6 -> 0.006681566599 | D29: 0.006821584548 | E29: 0.006900744152 | F29: 0.006699613814 | G29: 0.006618714754 | H29: 0.005418022844 | I29: 0.005325051923 | J29: 0.005479722961 | K29: 0.005104689368 | L29: 0.005566470471 | M29: 0
A30: Losses as a % of the Assets | B30: =+B21/350000 -> 0 | C30: =+C21/B6 -> 0 | D30: 0 | E30: 0 | F30: 0 | G30: 0 | H30: 0 | I30: 7.574753802e-06 | J30: -1.009157083e-05 | K30: 0 | L30: 0 | M30: 0
A31: Number of Properties in Possession | B31: =+B101+B138+B167 -> 0 | C31: 0 | D31: 0 | E31: 0 | F31: 0 | G31: 0 | H31: 0 | I31: 0 | J31: 0 | K31: 0 | L31: =+L101+L138+L167 -> 0 | M31: 0
A32: Appointment of a Receiver of Rent | B32: 1 | C32: 0 | D32: 0 | E32: 0 | F32: 0 | G32: 0 | H32: 0 | I32: 0 | J32: 1 | K32: 3 | L32: =+L102+L139+L168 -> 3 | M32: =+M102+M139+M168 -> 0
A33: Average Number of months (Possessions) in Arrears at the Sale Date | B33: 0 | C33: 0 | D33: 0 | E33: 0 | F33: 0 | G33: 0 | H33: 0 | I33: 0 | J33: 0 | K33: 0 | L33: 0 | M33: 0
A34: Average Number of months (RoR) in Arrears at the Sale Date | B34: 0 | C34: 0 | D34: 0 | E34: 0 | F34: 0 | G34: 0 | H34: 0 | I34: 0 | J34: 0 | K34: 0 | L34: 0 | M34: 0
A35: Arrears excluding Receiver of Rent and Possession Cases
A36: Performing Loans | B36: 1 | C36: 1 | D36: 0.9997558667 | E36: 1 | F36: 0.999046388 | G36: 1 | H36: 1 | I36: 0.997470671 | J36: 0.9979135362 | K36: 1 | L36: 1 | M36: 0
A37: >1 to 2 months arrears | B37: 0 | C37: 0 | D37: 0.0002441333435 | E37: 0 | F37: 0.0005008105131 | G37: 0 | H37: 0 | I37: 0.00252932901 | J37: 0.002086463767 | K37: 0 | L37: 0 | M37: 0
A38: >2 to 3 months arrears | B38: 0 | C38: 0 | D38: 0 | E38: 0 | F38: 0.0004528014594 | G38: 0 | H38: 0 | I38: 0 | J38: 0 | K38: 0 | L38: 0 | M38: 0
A39: >3 months arrears | B39: 0 | C39: 0 | D39: 0 | E39: 0 | F39: 0 | G39: 0 | H39: 0 | I39: 0 | J39: 0 | K39: 0 | L39: 0 | M39: 0
A40: Total | B40: =SUM(B36:B39) -> 1 | C40: =SUM(C36:C39) -> 1 | D40: 1 | E40: 1 | F40: 1 | G40: 1 | H40: 1 | I40: 1 | J40: 1 | K40: 1 | L40: 1 | M40: =SUM(M36:M39) -> 0
A41: Total Value of Arrears (£000's) | B41: 2 | C41: 1.250599923 | D41: 1.099439827 | E41: 0.1902700988 | F41: 1.512630042 | G41: 1.663159852 | H41: 0.7659196202 | I41: 2.026719704 | J41: 6.223189716 | K41: 9.629599224 | L41: 8.496289532 | M41: 0
A42: Total Value of Arrears as a % of the Notes Issued (£350,000,000) | B42: =+B41/350000 -> 5.714285714e-06 | C42: 3.573142636e-06 | D42: 3.141256648e-06 | E42: 5.436288537e-07 | F42: 4.321800121e-06 | G42: 4.751885292e-06 | H42: =+H41/350000 -> 2.188341772e-06 | I42: 5.790627727e-06 | J42: =+J41/350000 -> 1.778054205e-05 | K42: 2.751314064e-05 | L42: =+L41/350000 -> 2.427511295e-05 | M42: 0
A44: Underlying Assets | B44: 2014-07-31 | C44: 2014-10-31 | D44: 2015-01-30 | E44: 2015-04-30 | F44: 2015-07-31 | G44: =+G5 -> 2015-10-30 | H44: 2016-01-29 | I44: 2016-04-29 | J44: 2016-07-29 | K44: 2016-10-31 | L44: 2017-01-31 | M44: =+M5 -> 2017-04-28
A45: Weighted Average LTV | B45: 0.7068 | C45: 0.7069856304 | D45: 0.7074661555 | E45: 0.7075036326 | F45: 0.7073495708 | G45: 0.7057644749 | H45: 0.7014959806 | I45: 0.6967077777 | J45: 0.6944042336 | K45: 0.6923538621 | L45: 0.6883071615 | M45: 0
A46: Weighted Average Nationwide Indexed LTV | B46: 0.6181 | C46: 0.6122209929 | D46: 0.6128338749 | E46: 0.6134567777 | F46: 0.5947858854 | G46: 0.5877219175 | H46: 0.5786915614 | I46: 0.5642822657 | J46: 0.5375398991 | K46: 0.5280016309 | L46: 0.5227231054 | M46: 0
A47: Weighted Average Halifax Indexed LTV | B47: 0.6362 | C47: 0.61296337 | D47: 0.6197934692 | E47: 0.605496173 | F47: 0.577530849 | G47: 0.5673377362 | H47: 0.5625296146 | I47: 0.5324648772 | J47: 0.5105645669 | K47: n/a | L47: n/a | M47: n/a
A48: % of Standard Variable Rate Mortgages | B48: 0.0028 | C48: 0.00259234944 | D48: 0.00256248801 | E48: 0.002345490142 | F48: 0.002197560802 | G48: 0.00225427241 | H48: 0.00231439698 | I48: 0.002965260802 | J48: 0.003579377979 | K48: 0.003930183522 | L48: 0.003544947932 | M48: 0
A49: % of Fixed Rate Mortgages (reverting to SVR) | B49: 0 | C49: 0 | D49: 0 | E49: 0 | F49: 0 | G49: 0 | H49: 0 | I49: 0 | J49: 0 | K49: 0 | L49: 0 | M49: 0
A50: % of Fixed Rate Mortgages (reverting to Libor plus a variable margin) | B50: 0.2785 | C50: 0.2792077096 | D50: 0.2810365382 | E50: 0.2807495879 | F50: 0.2729203511 | G50: 0.2459604752 | H50: 0.183001469 | I50: 0.04041414088 | J50: 0 | K50: 0 | L50: 0 | M50: 0
A51: % of Fixed Rate Mortgages (reverting to Libor plus a fixed margin) | B51: 0 | C51: 0 | D51: 0 | E51: 0 | F51: 0 | G51: 0 | H51: 0 | I51: 0 | J51: 0 | K51: 0 | L51: 0 | M51: 0
A52: % of Libor Linked Mortgages (reverting to SVR) | B52: 0 | C52: 0 | D52: 0 | E52: 0 | F52: 0 | G52: 0 | H52: 0 | I52: 0 | J52: 0 | K52: 0 | L52: 0 | M52: 0
A53: % of Libor Linked Mortgages (reverting to Libor plus a variable margin) | B53: 0.5359 | C53: 0.5376564259 | D53: 0.5392232858 | E53: 0.5404342183 | F53: 0.5413965628 | G53: 0.5068217389 | H53: 0.3180467112 | I53: 0.1231510688 | J53: 0.1445167731 | K53: 0.1555874234 | L53: 0.1615623008 | M53: 0
A54: % of Libor Linked Mortgages plus a Variable Margin | B54: 0 | C54: 0 | D54: 0 | E54: 0 | F54: 0.007960783719 | G54: 0.06489516588 | H54: 0.2866228455 | I54: 0.5597866933 | J54: 0.5243915529 | K54: 0.4845882978 | L54: 0.4550576122 | M54: 0
A55: % of Libor Linked Mortgages | B55: 0.1578 | C55: 0.1559295508 | D55: 0.1529431685 | E55: 0.1525513168 | F55: 0.1518348876 | G55: 0.1563790863 | H55: 0.1831641507 | I55: 0.2384234993 | J55: 0.2878986118 | K55: 0.313501916 | L55: 0.3346553289 | M55: 0
A56: % of Base Rate Tracker Mortgages | B56: 0.0249 | C56: 0.02461396427 | D56: 0.02423451955 | E56: 0.02391938689 | F56: 0.02368985406 | G56: 0.02368926134 | H56: 0.02685042652 | I56: 0.03525933688 | J56: 0.03961368428 | K56: 0.04239217923 | L56: 0.04517981014 | M56: 0
A57: Weighted Average Loan Size | B57: 129336.47 | C57: 129238.1835 | D57: 129222.9585 | E57: 129614.8369 | F57: 129985.292 | G57: 129420.2412 | H57: 128923.3321 | I57: 124880.4043 | J57: 122324.9665 | K57: 119113.805 | L57: 118112.9856 | M57: 0
A58: Weighted Average Interest Rate | B58: 0.03757 | C58: 0.03766613276 | D58: 0.03770969429 | E58: 0.03774320744 | F58: 0.03785590377 | G58: 0.03871555942 | H58: 0.04121656334 | I58: 0.04369008549 | J58: 0.04247553649 | K58: 0.03955319087 | L58: 0.03884349157 | M58: 0
A59: Weighted Average Maturity Date (years) | B59: 17.69 | C59: 17.50579794 | D59: 17.29807548 | E59: 17.06992348 | F59: 16.85681339 | G59: 16.6214306 | H59: 16.03632307 | I59: 15.07502284 | J59: 14.32736023 | K59: 13.79883176 | L59: 13.31704197 | M59: 0
A60: Weighted Average Seasoning (months) | B60: 35.19 | C60: 37.88286764 | D60: 40.41976889 | E60: 43.21573923 | F60: 46.08336019 | G60: 49.74870576 | H60: 57.04952287 | I60: 69.73642194 | J60: 81.13473895 | K60: 88.59540852 | L60: 95.19036423 | M60: 0
A61: % of Interest Only Mortgages (optional switching to repayment) | B61: 0.7529 | C61: 0.7554350586 | D61: 0.7581552086 | E61: 0.7590120352 | F61: 0.759937574 | G61: 0.7558324046 | H61: 0.7240532567 | I61: 0.662346381 | J61: 0.6157521991 | K61: 0.5892539925 | L61: 0.5638464483 | M61: 0
A62: % of Interest Only Mortgages (mandatory switching to repayment) | B62: 0 | C62: 0 | D62: 0 | E62: 0 | F62: 0 | G62: 0 | H62: 0 | I62: 0 | J62: 0 | K62: 0 | L62: 0 | M62: 0
A63: % of Interest Only Mortgages | B63: 0.1479 | C63: 0.1465902667 | D63: 0.1435506297 | E63: 0.1435153757 | F63: 0.142784846 | G63: 0.1469154277 | H63: 0.1723586917 | I63: 0.2248263236 | J63: 0.2707047303 | K63: 0.296012964 | L63: 0.3199698277 | M63: 0
A64: % of Repayment Mortgages | B64: 0.0992 | C64: 0.0979746747 | D64: 0.09829416172 | E64: 0.0974725891 | F64: 0.09727757997 | G64: 0.09725216768 | H64: 0.1035880516 | I64: 0.1128272954 | J64: 0.1135430705 | K64: 0.1147330434 | L64: 0.116183724 | M64: 0
A65: % of Mortgages in London | B65: 0.2291 | C65: 0.225848948 | D65: 0.223323624 | E65: 0.2246994442 | F65: 0.2209554859 | G65: 0.2201187253 | H65: 0.2172601999 | I65: 0.2079510916 | J65: 0.2053808857 | K65: 0.2049979928 | L65: 0.212858844 | M65: 0
A66: % of Mortgages in the South East | B66: 0.3422 | C66: 0.3439919117 | D66: 0.3433457501 | E66: 0.3415311425 | F66: 0.343418001 | G66: 0.3410115837 | H66: 0.3392382114 | I66: 0.3306535732 | J66: 0.3264578736 | K66: 0.3187772186 | L66: 0.3096607112 | M66: 0
A67: % of Owner Occupied Mortgages | B67: 0.0193 | C67: 0.01867899969 | D67: 0.0183898663 | E67: 0.01777510698 | F67: 0.01730282421 | G67: 0.01745603368 | H67: 0.01904973266 | I67: 0.02474698014 | J67: 0.02662118294 | K67: 0.02832281014 | L67: 0.0290807782 | M67: 0
A68: % of Investment Home Loans - Professional Landlords | B68: 0.4545 | C68: 0.4518135775 | D68: 0.4525574855 | E68: 0.4535616431 | F68: 0.4557456835 | G68: 0.4665821943 | H68: 0.4877655094 | I68: 0.4975217977 | J68: 0.5100889331 | K68: 0.518882539 | L68: 0.5176572381 | M68: 0
A69: % of Investment Home Loans - Emerging Professional Landlords | B69: 0.5262 | C69: 0.5295074228 | D69: 0.5290526482 | E69: 0.52866325 | F69: 0.5269514923 | G69: 0.515961772 | H69: 0.4931847579 | I69: 0.4777312222 | J69: 0.463289884 | K69: 0.4527946508 | L69: 0.4532619837 | M69: 0
A70: Weighted Average Interest Coverage Ratio (calculated at the origination date) | B70: 1.7 | C70: 1.697303779 | D70: 1.697580382 | E70: 1.69907149 | F70: 1.699741118 | G70: 1.70335303 | H70: 1.720127788 | I70: 1.761752948 | J70: 1.796634608 | K70: 1.825253743 | L70: 1.838109254 | M70: 0
A71: % of Paragon Mortgages 2010 Limited Originated Assets | B71: 0.8144 | C71: 0.8168641355 | D71: 0.820259824 | E71: 0.8211838062 | F71: 0.8222776976 | G71: 0.81767738 | H71: 0.7876710258 | I71: 0.723351903 | J71: 0.668908326 | K71: 0.6401757213 | L71: 0.6166199131 | M71: 0
A72: % of Mortgage Trust Limited Originated Assets | B72: 0.1856 | C72: 0.1831358645 | D72: 0.179740176 | E72: 0.1788161938 | F72: 0.1777223024 | G72: 0.18232262 | H72: 0.2123289742 | I72: 0.276648097 | J72: 0.331091674 | K72: 0.3598242787 | L72: 0.3833800869 | M72: 0
A74: Underlying Assets - Paragon Mortgages 2010 Paragon Originated Assets | B74: 2014-07-31 | C74: 2014-10-31 | D74: 2015-01-30 | E74: 2015-04-30 | F74: 2015-07-31 | G74: =+G44 -> 2015-10-30 | H74: 2016-01-29 | I74: 2016-04-29 | J74: 2016-07-29 | K74: 2016-10-31 | L74: 2017-01-31 | M74: =+M44 -> 2017-04-28
A75: Weighted Average LTV | B75: 0.6996 | C75: 0.6988170107 | D75: 0.697885838 | E75: 0.6973628373 | F75: 0.6961779355 | G75: 0.6947439084 | H75: 0.6948548196 | I75: 0.698480144 | J75: 0.696137303 | K75: 0.6943623644 | L75: 0.6947140823 | M75: 0
A76: Weighted Average Nationwide Indexed LTV | B76: 0.6488 | C76: 0.6408942188 | D76: 0.6416813762 | E76: 0.6431664494 | F76: 0.6233965353 | G76: 0.6184066494 | H76: 0.6154274985 | I76: 0.6154033994 | J76: 0.5971841564 | K76: 0.591528956 | L76: 0.5908683662 | M76: 0
A77: Weighted Average Halifax Indexed LTV | B77: 0.6588 | C77: 0.636371586 | D77: 0.6423518601 | E77: 0.6264487408 | F77: 0.5982409197 | G77: 0.5913622983 | H77: 0.5920907056 | I77: 0.5711726395 | J77: 0.5574900172 | K77: n/a | L77: n/a | M77: n/a
A78: % of Standard Variable Rate Mortgages | B78: 0 | C78: 0 | D78: 0 | E78: 0 | F78: 0 | G78: 0 | H78: 0 | I78: 0 | J78: 0 | K78: 0 | L78: 0 | M78: 0
A79: % of Fixed Rate Mortgages (reverting to SVR) | B79: 0 | C79: 0 | D79: 0 | E79: 0 | F79: 0 | G79: 0 | H79: 0 | I79: 0 | J79: 0 | K79: 0 | L79: 0 | M79: 0
A80: % of Fixed Rate Mortgages (reverting to Libor plus a variable margin) | B80: 0.1504 | C80: 0.1506937812 | D80: 0.1470867928 | E80: 0.1457901116 | F80: 0.1332999262 | G80: 0.1270202942 | H80: 0.1327146375 | I80: 0.019505228 | J80: 0 | K80: 0 | L80: 0 | M80: 0
A81: % of Fixed Rate Mortgages (reverting to Libor plus a fixed margin) | B81: 0 | C81: 0 | D81: 0 | E81: 0 | F81: 0 | G81: 0 | H81: 0 | I81: 0 | J81: 0 | K81: 0 | L81: 0 | M81: 0
A82: % of Libor Linked Mortgages (reverting to SVR) | B82: 0 | C82: 0 | D82: 0 | E82: 0 | F82: 0 | G82: 0 | H82: 0 | I82: 0 | J82: 0 | K82: 0 | L82: 0 | M82: 0
A83: % of Libor Linked Mortgages (reverting to Libor plus a variable margin) | B83: 0.8496 | C83: 0.8493062188 | D83: 0.8529132072 | E83: 0.8542098884 | F83: 0.84783349 | G83: 0.7997173134 | H83: 0.5638885006 | I83: 0.4218072654 | J83: 0.4412021726 | K83: 0.456569262 | L83: 0.4709174424 | M83: 0
A84: % of Libor Linked Mortgages plus a Variable Margin | B84: 0 | C84: 0 | D84: 0 | E84: 0 | F84: 0.01886658382 | G84: 0.07326239239 | H84: 0.303396862 | I84: 0.5586875066 | J84: 0.5587978274 | K84: 0.543430738 | L84: 0.5290825576 | M84: 0
A85: % of Libor Linked Mortgages | B85: 0 | C85: 0 | D85: 0 | E85: 0 | F85: 0 | G85: 0 | H85: 0 | I85: 0 | J85: 0 | K85: 0 | L85: 0 | M85: 0
A86: % of Base Rate Tracker Mortgages | B86: 0 | C86: 0 | D86: 0 | E86: 0 | F86: 0 | G86: 0 | H86: 0 | I86: 0 | J86: 0 | K86: 0 | L86: 0 | M86: 0
A87: Weighted Average Loan Size | B87: 184295.46 | C87: 184477.9494 | D87: 185313.0883 | E87: 186100.4368 | F87: 186801.6405 | G87: 187603.9299 | H87: 190315.2685 | I87: 184863.4335 | J87: 186605.6089 | K87: 188166.1031 | L87: 185628.6178 | M87: 0
A88: Weighted Average Interest Rate | B88: 0.04889 | C88: 0.04888758498 | D88: 0.04887992732 | E88: 0.04886817401 | F88: 0.04879431983 | G88: 0.04886771442 | H88: 0.04937597208 | I88: 0.04989243253 | J88: 0.04991801024 | K88: 0.04787606343 | L88: 0.04784168237 | M88: 0
A89: Weighted Average Maturity Date (years) | B89: 19.64 | C89: 19.41441777 | D89: 19.18072997 | E89: 18.93211821 | F89: 18.70278033 | G89: 18.45854069 | H89: 18.21143038 | I89: 17.83198705 | J89: 17.43600504 | K89: 17.01648312 | L89: 16.73283006 | M89: 0
A90: Weighted Average Seasoning (months) | B90: 7.54 | C90: 10.55749683 | D90: 13.58498071 | E90: 16.50669757 | F90: 19.53582504 | G90: 22.56217822 | H90: 25.51342751 | I90: 28.53671825 | J90: 31.64665842 | K90: 34.70499437 | L90: 37.70353378 | M90: 0
A91: % of Interest Only Mortgages (optional switching to repayment) | B91: 0.9409 | C91: 0.9413045066 | D91: 0.9400938947 | E91: 0.9403510906 | F91: 0.9408950572 | G91: 0.940879435 | H91: 0.92713204 | I91: 0.9243628957 | J91: 0.9339649773 | K91: 0.942124786 | L91: 0.9377716063 | M91: 0
A92: % of Interest Only Mortgages (mandatory switching to repayment) | B92: 0 | C92: 0 | D92: 0 | E92: 0 | F92: 0 | G92: 0 | H92: 0 | I92: 0 | J92: 0 | K92: 0 | L92: 0 | M92: 0
A93: % of Interest Only Mortgages | B93: 0 | C93: 0 | D93: 0 | E93: 0 | F93: 0 | G93: 0 | H93: 0 | I93: 0 | J93: 0 | K93: 0 | L93: 0 | M93: 0
A94: % of Repayment Mortgages | B94: 0.0591 | C94: 0.05869549344 | D94: 0.05990610533 | E94: 0.05964890938 | F94: 0.05910494283 | G94: 0.05912056503 | H94: 0.07286796005 | I94: 0.07563710427 | J94: 0.06603502269 | K94: 0.05787521401 | L94: 0.06222839366 | M94: 0
A95: % of Mortgages in London | B95: 0.1615 | C95: 0.1617067885 | D95: 0.1614118673 | E95: 0.161953355 | F95: 0.1585576808 | G95: 0.158089194 | H95: 0.1604177879 | I95: 0.1467010058 | J95: 0.1524923607 | K95: 0.1571870034 | L95: 0.1478683605 | M95: 0
A96: % of Mortgages in the South East | B96: 0.2922 | C96: 0.2905400672 | D96: 0.2915781289 | E96: 0.2932205379 | F96: 0.2962275089 | G96: 0.2991614402 | H96: 0.3008231861 | I96: 0.2956995514 | J96: 0.2766825004 | K96: 0.2519845633 | L96: 0.2546537966 | M96: 0
A97: % of Owner Occupied Mortgages | B97: 0 | C97: 0 | D97: 0 | E97: 0 | F97: 0 | G97: 0 | H97: 0 | I97: 0 | J97: 0 | K97: 0 | L97: 0 | M97: 0
A98: % of Investment Home Loans - Professional Landlords | B98: 0.7424 | C98: 0.741946037 | D98: 0.7402604267 | E98: 0.7389098783 | F98: 0.7425995838 | G98: 0.7432201593 | H98: 0.7566181643 | I98: 0.786005965 | J98: 0.7911636073 | K98: 0.8066840697 | L98: 0.8155830829 | M98: 0
A99: % of Investment Home Loans - Emerging Professional Landlords | B99: 0.2576 | C99: 0.258053963 | D99: 0.2597395733 | E99: 0.2610901217 | F99: 0.2574004162 | G99: 0.2567798407 | H99: 0.2433818357 | I99: 0.213994035 | J99: 0.2088363927 | K99: 0.1933159303 | L99: 0.1844169171 | M99: 0
A100: Weighted Average Interest Coverage Ratio (calculated at the origination date) | B100: 1.71 | C100: 1.712052387 | D100: 1.712675257 | E100: 1.714635281 | F100: 1.71348012 | G100: 1.714072476 | H100: 1.705911166 | I100: 1.712241865 | J100: 1.716156029 | K100: 1.716050241 | L100: 1.707838785 | M100: 0
A101: Number of Properties in Possession | B101: 0 | C101: 0 | D101: 0 | E101: 0 | F101: 0 | G101: 0 | H101: 0 | I101: 0 | J101: 0 | K101: 0 | L101: 0 | M101: 0
A102: Appointment of a Receiver of Rent | B102: 0 | C102: 0 | D102: 0 | E102: 0 | F102: 0 | G102: 0 | H102: 0 | I102: 0 | J102: 0 | K102: 0 | L102: 0 | M102: 0
A103: PM2010 Paragon Quarterly Losses | B103: 0 | C103: 0 | D103: 0 | E103: 0 | F103: 0 | G103: 0 | H103: 0 | I103: 2 | J103: -2 | K103: 0 | L103: 0 | M103: 0
A104: Arrears excluding Receiver of Rent and Possession Cases
A105: Performing Loans | B105: 1 | C105: 1 | D105: 1 | E105: 1 | F105: 1 | G105: 1 | H105: 1 | I105: 1 | J105: 1 | K105: 1 | L105: 1 | M105: 0
A106: >1 to 2 months arrears | B106: 0 | C106: 0 | D106: 0 | E106: 0 | F106: 0 | G106: 0 | H106: 0 | I106: 0 | J106: 0 | K106: 0 | L106: 0 | M106: 0
A107: >2 to 3 months arrears | B107: 0 | C107: 0 | D107: 0 | E107: 0 | F107: 0 | G107: 0 | H107: 0 | I107: 0 | J107: 0 | K107: 0 | L107: 0 | M107: 0
A108: >3 months arrears | B108: 0 | C108: 0 | D108: 0 | E108: 0 | F108: 0 | G108: 0 | H108: 0 | I108: 0 | J108: 0 | K108: 0 | L108: 0 | M108: 0
A109: Total | B109: =SUM(B105:B108) -> 1 | C109: =SUM(C105:C108) -> 1 | D109: 1 | E109: 1 | F109: 1 | G109: 1 | H109: 1 | I109: 1 | J109: 1 | K109: 1 | L109: 1 | M109: =SUM(M105:M108) -> 0
A111: Underlying Assets - Paragon Mortgages 2010 Mortgage Trust Originated Assets | B111: 2014-07-31 | C111: 2014-10-31 | D111: 2015-01-30 | E111: 2015-04-30 | F111: 2015-07-31 | G111: =+G74 -> 2015-10-30 | H111: 2016-01-29 | I111: 2016-04-29 | J111: 2016-07-29 | K111: 2016-10-31 | L111: 2017-01-31 | M111: =+M74 -> 2017-04-28
A112: Weighted Average LTV | B112: 0.7216 | C112: 0.7221808738 | D112: 0.7233193555 | E112: 0.7231847408 | F112: 0.7227122447 | G112: 0.7211576476 | H112: 0.7169279183 | I112: 0.709978209 | J112: 0.7112828483 | K112: 0.7130946797 | L112: 0.7050674865 | M112: 0
A113: Weighted Average Nationwide Indexed LTV | B113: 0.6628 | C113: 0.6565559041 | D113: 0.6567734779 | E113: 0.6568296071 | F113: 0.6356833258 | G113: 0.6286990935 | H113: 0.6265328771 | I113: 0.6259393478 | J113: 0.6103744773 | K113: 0.6110035934 | L113: 0.6084321251 | M113: 0
A114: Weighted Average Halifax Indexed LTV | B114: 0.6754 | C114: 0.6505668164 | D114: 0.6579020335 | E114: 0.6424165605 | F114: 0.6113659506 | G114: 0.6008052062 | H114: 0.6015178729 | I114: 0.583434628 | J114: 0.5698992418 | K114: n/a | L114: n/a | M114: n/a
A115: % of Standard Variable Rate Mortgages | B115: 0 | C115: 0 | D115: 0 | E115: 0 | F115: 0 | G115: 0 | H115: 0 | I115: 0 | J115: 0 | K115: 0 | L115: 0 | M115: 0
A116: % of Fixed Rate Mortgages (reverting to SVR) | B116: 0 | C116: 0 | D116: 0 | E116: 0 | F116: 0 | G116: 0 | H116: 0 | I116: 0 | J116: 0 | K116: 0 | L116: 0 | M116: 0
A117: % of Fixed Rate Mortgages (reverting to Libor plus a variable margin) | B117: 0.4092 | C117: 0.4095747656 | D117: 0.4129667677 | E117: 0.4129020299 | F117: 0.4050674308 | G117: 0.3683576364 | H117: 0.2802657488 | I117: 0.08048233177 | J117: 0 | K117: 0 | L117: 0 | M117: 0
A118: % of Fixed Rate Mortgages (reverting to Libor plus a fixed margin) | B118: 0 | C118: 0 | D118: 0 | E118: 0 | F118: 0 | G118: 0 | H118: 0 | I118: 0 | J118: 0 | K118: 0 | L118: 0 | M118: 0
A119: % of Libor Linked Mortgages (reverting to SVR) | B119: 0 | C119: 0 | D119: 0 | E119: 0 | F119: 0 | G119: 0 | H119: 0 | I119: 0 | J119: 0 | K119: 0 | L119: 0 | M119: 0
A120: % of Libor Linked Mortgages (reverting to Libor plus a variable margin) | B120: 0.5908 | C120: 0.5904252344 | D120: 0.5870332323 | E120: 0.5870979701 | F120: 0.5886346719 | G120: 0.549904793 | H120: 0.3267417665 | I120: 0 | J120: 0 | K120: 0 | L120: 0 | M120: 0
A121: % of Libor Linked Mortgages plus a Variable Margin | B121: 0 | C121: 0 | D121: 0 | E121: 0 | F121: 0.006297897321 | G121: 0.08173757064 | H121: 0.3929924847 | I121: 0.9195176682 | J121: 1 | K121: 1 | L121: 1 | M121: 0
A122: % of Libor Linked Mortgages | B122: 0 | C122: 0 | D122: 0 | E122: 0 | F122: 0 | G122: 0 | H122: 0 | I122: 0 | J122: 0 | K122: 0 | L122: 0 | M122: 0
A123: % of Base Rate Tracker Mortgages | B123: 0 | C123: 0 | D123: 0 | E123: 0 | F123: 0 | G123: 0 | H123: 0 | I123: 0 | J123: 0 | K123: 0 | L123: 0 | M123: 0
A124: Weighted Average Loan Size | B124: 135183.51 | C124: 134528.3852 | D124: 134009.7541 | E124: 133824.2503 | F124: 133432.7794 | G124: 132094.9883 | H124: 131470.7739 | I124: 127414.8854 | J124: 122028.588 | K124: 114966.7104 | L124: 112875.7189 | M124: 0
A125: Weighted Average Interest Rate | B125: 0.03814 | C125: 0.03812335852 | D125: 0.0380977277 | E125: 0.03809465864 | F125: 0.03822208689 | G125: 0.0395703371 | H125: 0.04438935738 | I125: 0.05239746032 | J125: 0.05348201987 | K125: 0.0514867236 | L125: 0.05148417657 | M125: 0
A126: Weighted Average Maturity Date (years) | B126: 19.72 | C126: 19.51863922 | D126: 19.25343003 | E126: 19.00438032 | F126: 18.76726045 | G126: 18.55553979 | H126: 18.25045311 | I126: 17.94041314 | J126: 17.85131062 | K126: 17.74433463 | L126: 17.55189297 | M126: 0
A127: Weighted Average Seasoning (months) | B127: 7.31 | C127: 10.34678591 | D127: 13.37618615 | E127: 16.30808486 | F127: 19.32802586 | G127: 22.23588716 | H127: 24.82992337 | I127: 27.79353018 | J127: 31.16151518 | K127: 34.25230644 | L127: 37.32379266 | M127: 0
A128: % of Interest Only Mortgages (optional switching to repayment) | B128: 0.9187 | C128: 0.9189457937 | D128: 0.9185995829 | E128: 0.9184733497 | F128: 0.9180310738 | G128: 0.9179455336 | H128: 0.9154322994 | I128: 0.9097745683 | J128: 0.9076442187 | K128: 0.8957941519 | L128: 0.8851204533 | M128: 0
A129: % of Interest Only Mortgages (mandatory switching to repayment) | B129: 0 | C129: 0 | D129: 0 | E129: 0 | F129: 0 | G129: 0 | H129: 0 | I129: 0 | J129: 0 | K129: 0 | L129: 0 | M129: 0
A130: % of Interest Only Mortgages | B130: 0 | C130: 0 | D130: 0 | E130: 0 | F130: 0 | G130: 0 | H130: 0 | I130: 0 | J130: 0 | K130: 0 | L130: 0 | M130: 0
A131: % of Repayment Mortgages | B131: 0.0813 | C131: 0.08105420627 | D131: 0.0814004171 | E131: 0.08152665029 | F131: 0.0819689262 | G131: 0.08205446642 | H131: 0.08456770057 | I131: 0.0902254317 | J131: 0.09235578128 | K131: 0.1042058481 | L131: 0.1148795467 | M131: 0
A132: % of Mortgages in London | B132: 0.2127 | C132: 0.209685754 | D132: 0.2067236698 | E132: 0.2079703948 | F132: 0.2036717406 | G132: 0.2120427689 | H132: 0.2023716479 | I132: 0.1749941212 | J132: 0.1421896801 | K132: 0.1100865308 | L132: 0.1248234651 | M132: 0
A133: % of Mortgages in the South East | B133: 0.3554 | C133: 0.3580417545 | D133: 0.3579979736 | E133: 0.3552398245 | F133: 0.3569826981 | G133: 0.342276705 | H133: 0.3371556738 | I133: 0.3176168338 | J133: 0.3126467211 | K133: 0.3186855818 | L133: 0.2806181842 | M133: 0
A134: % of Owner Occupied Mortgages | B134: 0 | C134: 0 | D134: 0 | E134: 0 | F134: 0 | G134: 0 | H134: 0 | I134: 0 | J134: 0 | K134: 0 | L134: 0 | M134: 0
A135: % of Investment Home Loans - Professional Landlords | B135: 0.4057 | C135: 0.4080027043 | D135: 0.4069737063 | E135: 0.4078500915 | F135: 0.4074988843 | G135: 0.42144026 | H135: 0.4463847393 | I135: 0.4504636314 | J135: 0.4753455214 | K135: 0.4834674024 | L135: 0.4808650589 | M135: 0
A136: % of Investment Home Loans - Emerging Professional Landlords | B136: 0.5943 | C136: 0.5919972957 | D136: 0.5930262937 | E136: 0.5921499085 | F136: 0.5925011157 | G136: 0.57855974 | H136: 0.5536152607 | I136: 0.5495363686 | J136: 0.5246544786 | K136: 0.5165325976 | L136: 0.5191349411 | M136: 0
A137: Weighted Average Interest Coverage Ratio (calculated at the origination date) | B137: 1.51 | C137: 1.508345952 | D137: 1.506002672 | E137: 1.504637459 | F137: 1.506087065 | G137: 1.510048344 | H137: 1.510829118 | I137: 1.513929313 | J137: 1.524413306 | K137: 1.538150561 | L137: 1.547039368 | M137: 0
A138: Number of Properties in Possession | B138: 0 | C138: 0 | D138: 0 | E138: 0 | F138: 0 | G138: 0 | H138: 0 | I138: 0 | J138: 0 | K138: 0 | L138: 0 | M138: 0
A139: Appointment of a Receiver of Rent | B139: 0 | C139: 0 | D139: 0 | E139: 0 | F139: 0 | G139: 0 | H139: 0 | I139: 0 | J139: 1 | K139: 1 | L139: 1 | M139: 0
A140: PM2010 Mortgage Trust Quarterly Losses | B140: 0 | C140: 0 | D140: 0 | E140: 0 | F140: 0 | G140: 0 | H140: 0 | I140: 0 | J140: 0 | K140: 0 | L140: 0 | M140: 5
A141: Arrears excluding Receiver of Rent and Possession Cases
A142: Performing Loans | B142: 1 | C142: 1 | D142: 1 | E142: 1 | F142: 1 | G142: 1 | H142: 1 | I142: 1 | J142: 0.9938803908 | K142: 1 | L142: 1 | M142: 0
A143: >1 to 2 months arrears | B143: 0 | C143: 0 | D143: 0 | E143: 0 | F143: 0 | G143: 0 | H143: 0 | I143: 0 | J143: 0.006119609175 | K143: 0 | L143: 0 | M143: 0
A144: >2 to 3 months arrears | B144: 0 | C144: 0 | D144: 0 | E144: 0 | F144: 0 | G144: 0 | H144: 0 | I144: 0 | J144: 0 | K144: 0 | L144: 0 | M144: 0
A145: >3 months arrears | B145: 0 | C145: 0 | D145: 0 | E145: 0 | F145: 0 | G145: 0 | H145: 0 | I145: 0 | J145: 0 | K145: 0 | L145: 0 | M145: 0
A146: Total | B146: =SUM(B142:B145) -> 1 | C146: =SUM(C142:C145) -> 1 | D146: =SUM(D142:D145) -> 1 | E146: =SUM(E142:E145) -> 1 | F146: 1 | G146: 1 | H146: 1 | I146: 1 | J146: 1 | K146: 1 | L146: 1 | M146: =SUM(M142:M145) -> 0
A148: Underlying Assets - Mortgage Trust Limited Originated Assets (ex FF4) | B148: 2014-07-31 | C148: 2014-10-31 | D148: 2015-01-30 | E148: 2015-04-30 | F148: 2015-07-31 | G148: =+G111 -> 2015-10-30 | H148: 2016-01-29 | I148: 2016-04-29 | J148: 2016-07-29 | K148: 2016-10-31 | L148: 2017-01-31 | M148: =+M111 -> 2017-04-28
A149: Weighted Average LTV | B149: 0.6668 | C149: 0.6664894101 | D149: 0.6658285697 | E149: 0.6670187967 | F149: 0.6693192482 | G149: 0.6698880765 | H149: 0.6708493319 | I149: 0.674144056 | J149: 0.6752878115 | K149: 0.6731937828 | L149: 0.670615305 | M149: 0
A150: Weighted Average Nationwide Indexed LTV | B150: 0.4381 | C150: 0.4327558884 | D150: 0.430534754 | E150: 0.4309566896 | F150: 0.4208668605 | G150: 0.4168688558 | H150: 0.4145992761 | I150: 0.4141865769 | J150: 0.4034406762 | K150: 0.3987736357 | L150: 0.400588134 | M150: 0
A151: Weighted Average Halifax Indexed LTV | B151: 0.4831 | C151: 0.4618111512 | D151: 0.464657899 | E151: 0.4554418063 | F151: 0.4373315869 | G151: 0.429097606 | H151: 0.4292568252 | I151: 0.4121349346 | J151: 0.402966608 | K151: n/a | L151: n/a | M151: n/a
A152: % of Standard Variable Rate Mortgages | B152: 0.0151 | C152: 0.0141553346 | D152: 0.01425662346 | E152: 0.01311676584 | F152: 0.01236513804 | G152: 0.0123641949 | H152: 0.01090005257 | I152: 0.01071852955 | J152: 0.01081083657 | K152: 0.01092250789 | L152: 0.009246562493 | M152: 0
A153: % of Libor Linked Mortgages | B153: 0.8505 | C153: 0.8514419129 | D153: 0.850912533 | E153: 0.8531180176 | F153: 0.8543378377 | G153: 0.8577053481 | H153: 0.8626432233 | I153: 0.8618295296 | J153: 0.8695434961 | K153: 0.8712639322 | L153: 0.8729074364 | M153: 0
A154: % of Base Rate Tracker Mortgages | B154: 0.1344 | C154: 0.1344027525 | D154: 0.1348308435 | E154: 0.1337652166 | F154: 0.1332970242 | G154: 0.129930457 | H154: 0.1264567241 | I154: 0.1274519408 | J154: 0.1196456673 | K154: 0.11781356 | L154: 0.1178460011 | M154: 0
A155: Weighted Average Loan Size | B155: 87379.65 | C155: 87374.62839 | D155: 86998.31131 | E155: 87776.86744 | F155: 88655.16259 | G155: 88965.18908 | H155: 89699.64374 | I155: 90924.64161 | J155: 91404.15295 | K155: 90406.7136 | L155: 91392.16091 | M155: 0
A156: Weighted Average Interest Rate | B156: 0.02283 | C156: 0.02305775226 | D156: 0.0229198349 | E156: 0.02297496526 | F156: 0.0229937341 | G156: 0.02321055065 | H156: 0.02343705319 | I156: 0.02356658925 | J156: 0.02376492122 | K156: 0.02174134402 | L156: 0.02177209995 | M156: 0
A157: Weighted Average Maturity Date (years) | B157: 8.88 | C157: 8.649361773 | D157: 8.462428166 | E157: 8.27448097 | F157: 8.097952627 | G157: 8.06913904 | H157: 7.869652217 | I157: 7.697312979 | J157: 7.618748555 | K157: 7.468571051 | L157: 7.238767364 | M157: 0
A158: Weighted Average Seasoning (months) | B158: 157.29 | C158: 160.4595084 | D158: 163.5833851 | E158: 166.5421908 | F158: 169.614941 | G158: 172.7281145 | H158: 175.7499893 | I158: 178.6201964 | J158: 181.616262 | K158: 184.8503637 | L158: 187.9218336 | M158: 0
A159: % of Interest Only Mortgages | B159: 0.797 | C159: 0.8004454346 | D159: 0.7986563318 | E159: 0.8025860111 | F159: 0.8034154637 | G159: 0.805799235 | H159: 0.8117530466 | I159: 0.8126798127 | J159: 0.8176126178 | K159: 0.8226597857 | L159: 0.8346021053 | M159: 0
A160: % of Repayment Mortgages | B160: 0.203 | C160: 0.1995545654 | D160: 0.2013436682 | E160: 0.1974139889 | F160: 0.1965845363 | G160: 0.194200765 | H160: 0.1882469534 | I160: 0.1873201873 | J160: 0.1823873822 | K160: 0.1773402143 | L160: 0.1653978947 | M160: 0
A161: % of Mortgages in London | B161: 0.3595 | C161: 0.3539668201 | D161: 0.3537909734 | E161: 0.3577107823 | F161: 0.3571136282 | G161: 0.3240685694 | H161: 0.3230514039 | I161: 0.3239828313 | J161: 0.3228542629 | K161: 0.3292512722 | L161: 0.3338305097 | M161: 0
A162: % of Mortgages in the South East | B162: 0.3559 | C162: 0.3601426466 | D162: 0.3566781256 | E162: 0.3543006753 | F162: 0.3563292758 | G162: 0.3894627865 | H162: 0.3907488482 | I162: 0.3878711416 | J162: 0.3899404636 | K162: 0.3821100991 | L162: 0.379607118 | M162: 0
A163: % of Owner Occupied Mortgages | B163: 0.1041 | C163: 0.1019953122 | D163: 0.1023136102 | E163: 0.09940434698 | F163: 0.09735876685 | G163: 0.09574255614 | H163: 0.08971800823 | I163: 0.0894529202 | J163: 0.08040426572 | K163: 0.07871289352 | L163: 0.07585364808 | M163: 0
A164: % of Investment Home Loans - Professional Landlords | B164: 0.285 | C164: 0.2572964472 | D164: 0.2581538338 | E164: 0.2592665828 | F164: 0.2615971494 | G164: 0.2650857149 | H164: 0.2674053002 | I164: 0.2664502631 | J164: 0.2678394904 | K164: 0.2757853444 | L164: 0.2772998665 | M164: 0
A165: % of Investment Home Loans - Emerging Professional Landlords | B165: 0.6109 | C165: 0.6407082406 | D165: 0.639532556 | E165: 0.6413290703 | F165: 0.6410440838 | G165: 0.6391717289 | H165: 0.6428766916 | I165: 0.6440968167 | J165: 0.6517562439 | K165: 0.645501762 | L165: 0.6468464854 | M165: 0
A166: Weighted Average Interest Coverage Ratio (calculated at the origination date) | B166: 2.26 | C166: 2.267491805 | D166: 2.2812769 | E166: 2.283085736 | F166: 2.283646969 | G166: 2.289236003 | H166: 2.290505301 | I166: 2.28520871 | J166: 2.282269859 | K166: 2.29174823 | L166: 2.287902489 | M166: 0
A167: Number of Properties in Possession | B167: 0 | C167: 0 | D167: 0 | E167: 0 | F167: 0 | G167: 0 | H167: 0 | I167: 0 | J167: 0 | K167: 0 | L167: 0 | M167: 0
A168: Appointment of a Receiver of Rent | B168: 1 | C168: 0 | D168: 0 | E168: 0 | F168: 0 | G168: 0 | H168: 0 | I168: 0 | J168: 0 | K168: 2 | L168: 2 | M168: 0
A169: MTL Quarterly Losses | B169: 0 | C169: 0 | D169: 0 | E169: 0 | F169: 0 | G169: 0 | H169: 0 | I169: 0 | J169: 0 | K169: 0 | L169: 0 | M169: 0
A170: Arrears excluding Receiver of Rent and Possession Cases
A171: Performing Loans | B171: 1 | C171: 1 | D171: 0.998641743 | E171: 1 | F171: 0.9946342583 | G171: 1 | H171: 1 | I171: 0.9908572333 | J171: 1 | K171: 1 | L171: 1 | M171: 0
A172: >1 to 2 months arrears | B172: 0 | C172: 0 | D172: 0.001358256951 | E172: 0 | F172: 0.00281793847 | G172: 0 | H172: 0 | I172: 0.009142766706 | J172: 0 | K172: 0 | L172: 0 | M172: 0
A173: >2 to 3 months arrears | B173: 0 | C173: 0 | D173: 0 | E173: 0 | F173: 0.002547803248 | G173: 0 | H173: 0 | I173: 0 | J173: 0 | K173: 0 | L173: 0 | M173: 0
A174: >3 months arrears | B174: 0 | C174: 0 | D174: 0 | E174: 0 | F174: 0 | G174: 0 | H174: 0 | I174: 0 | J174: 0 | K174: 0 | L174: 0 | M174: 0
A175: Total | B175: =SUM(B171:B174) -> 1 | C175: =SUM(C171:C174) -> 1 | D175: =SUM(D171:D174) -> 1 | E175: =SUM(E171:E174) -> 1 | F175: 1 | G175: 1 | H175: 1 | I175: 1 | J175: 1 | K175: 1 | L175: 1 | M175: =SUM(M171:M174) -> 0

Sheet Graphs
K2: PARAGON MORTGAGES (NO.19) PLC
